[Event "FIDE World School-ch G-15 2025"]
[Site "Vrnjacka Banja"]
[Date "2025.03.22"]
[Round "4.6"]
[White "Zarkym, Ailin"]
[Black "Ashotia, Barbare"]
[Result "1-0"]
[Annotator "NA RC"]
[ECO "B57"]
[WhiteElo "1763"]
[BlackElo "1895"]
[PlyCount "53"]
[EventDate "2025.03.19"]
[EventType "swiss"]
[EventCountry "SRB"]
[SourceTitle "playchess.com"]
[Source "ChessBase"]
[SourceQuality "1"]
[TimeControl "5400+30"]

1. e4 {[%emt 0:00:02]} c5 {[%emt 0:00:09]} 2. Nf3 {[%emt 0:00:07]} a6 {[%emt 0:00:12]} 3. Nc3 {[%emt 0:00:07]} b5 {[%emt 0:00:58]} 4. d4 {[%emt 0:00:36]} cxd4 {[%emt 0:00:25]} 5. Nxd4 {[%emt 0:00:21]} Bb7 {[%emt 0:00:32]} 6. a3 {[%emt 0:01:32]} e6 {[%emt 0:00:50]} 7. Bd3 {[%emt 0:01:57]} Nc6 {[%emt 0:00:58]} 8. Nb3 {[%emt 0:03:53]} Nf6 {[%emt 0:05:14]} 9. f4 {[%emt 0:04:27]} d6 {[%emt 0:05:31]} 10. O-O {[%emt 0:01:06]} Be7 {[%emt 0:00:47]} 11. Qf3 {[%emt 0:01:56]} O-O {[%emt 0:04:33]} 12. Be3 {[%emt 0:03:36]} Qc7 {[%emt 0:07:19]} 13. Rad1 {[%emt 0:03:42]} Nd7 {[%emt 0:06:50]} 14. Qh3 {[%emt 0:02:34]} Nc5 {[%emt 0:02:14]} 15. Nxc5 {[%emt 0:01:08]} dxc5 {[%emt 0:00:18]} 16. e5 {[%emt 0:00:37]} h6 {[%emt 0:02:15]} 17. f5 {[%emt 0:05:52]} Nxe5 {[%emt 0:07:06]} 18. Bxh6 {[%emt 0:02:51]} gxh6 {[%emt 0:06:34]} 19. f6 {[%emt 0:01:59]} Bxf6 {[%emt 0:05:49]} 20. Rxf6 {[%emt 0:01:04]} Rfd8 {[%emt 0:03:57]} 21. Rxh6 {[%emt 0:01:56]} Kf8 {[%emt 0:01:24]} 22. Rh8+ {[%emt 0:00:08]} Ke7 {[%emt 0:00:05]} 23. Qh4+ {[%emt 0:00:06]} f6 {[%emt 0:08:45]} 24. Rh7+ {[%emt 0:00:09]} Nf7 {[%emt 0:00:06]} 25. Rxf7+ {[%emt 0:00:11]} Kxf7 {[%emt 0:00:04]} 26. Qh7+ {[%emt 0:00:07]} Kf8 {[%emt 0:00:24]} 27. Qxc7 {[%emt 0:00:05]} 1-0